[Event "Grandmaster Triathlon (GM1)"]
[Site "Biel, CH"]
[Date "2025.07.13"]
[Round "5"]
[White "Salem, A.R. Saleh"]
[Black "Aravindh, Chithambaram VR."]
[Result "0-1"]
[Board "2"]
[TimeControl "900+5"]
[WhiteFideId "9301348"]
[BlackFideId "5072786"]
[WhiteTitle "GM"]
[BlackTitle "GM"]
[WhiteElo "2637"]
[BlackElo "2576"]
[WhiteTeam "UAE"]
[BlackTeam "IND"]
[WhiteClock "0:00:07"]
[BlackClock "0:00:35"]
[Variant "Standard"]

1. d4 {[%clk 0:15:07]}  Nf6 {[%clk 0:15:05]} 2. c4 {[%clk 0:15:11]}  Nc6 {[%clk 0:15:06]} 3. Nf3 {[%clk 0:15:13]}  e6 {[%clk 0:15:09]} 4. a3 {[%clk 0:15:13]}  d5 {[%clk 0:15:09]} 5. Nbd2 {[%clk 0:13:57]}  Bd6 {[%clk 0:14:25]} 6. Qc2 {[%clk 0:11:46]}  O-O {[%clk 0:14:06]} 7. c5 {[%clk 0:11:45]}  Bf4 {[%clk 0:13:06]} 8. e3 {[%clk 0:11:28]}  Bh6 {[%clk 0:13:09]} 9. b4 {[%clk 0:11:29]}  g6 {[%clk 0:11:57]} 10. Bb2 {[%clk 0:11:24]}  Ne7 {[%clk 0:11:38]} 11. Bd3 {[%clk 0:11:18]}  c6 {[%clk 0:11:19]} 12. O-O {[%clk 0:11:00]}  Bg7 {[%clk 0:11:09]} 13. a4 {[%clk 0:10:45]}  Nd7 {[%clk 0:10:44]} 14. b5 {[%clk 0:10:37]}  Qc7 {[%clk 0:10:01]} 15. Qc3 {[%clk 0:05:59]}  f6 {[%clk 0:07:51]} 16. e4 {[%clk 0:05:42]}  e5 {[%clk 0:07:38]} 17. Qb3 {[%clk 0:04:16]}  Kh8 {[%clk 0:06:43]} 18. Rfe1 {[%clk 0:03:51]}  exd4 {[%clk 0:06:23]} 19. Bxd4 {[%clk 0:03:53]}  Ne5 {[%clk 0:06:27]} 20. Bf1 {[%clk 0:02:14]}  Be6 {[%clk 0:05:57]} 21. Nxe5 {[%clk 0:00:25]}  fxe5 {[%clk 0:05:59]} 22. Qg3 {[%clk 0:00:21]}  Rad8 {[%clk 0:04:26]} 23. Bb2 {[%clk 0:00:14]}  dxe4 {[%clk 0:03:51]} 24. Nxe4 {[%clk 0:00:12]}  Nf5 {[%clk 0:03:54]} 25. Qc3 {[%clk 0:00:08]}  Bd5 {[%clk 0:03:37]} 26. f3 {[%clk 0:00:08]}  Nd4 {[%clk 0:03:33]} 27. Rad1 {[%clk 0:00:08]}  Bxe4 {[%clk 0:02:58]} 28. fxe4 {[%clk 0:00:12]}  Qe7 {[%clk 0:02:59]} 29. Bc1 {[%clk 0:00:09]}  cxb5 {[%clk 0:02:19]} 30. axb5 {[%clk 0:00:12]}  Rxf1+ {[%clk 0:02:08]} 31. Kxf1 {[%clk 0:00:16]}  Qf8+ {[%clk 0:02:12]} 32. Kg1 {[%clk 0:00:13]}  Ne2+ {[%clk 0:02:13]} 33. Rxe2 {[%clk 0:00:16]}  Rxd1+ {[%clk 0:02:16]} 34. Re1 {[%clk 0:00:20]}  Rxe1+ {[%clk 0:02:19]} 35. Qxe1 {[%clk 0:00:24]}  Qxc5+ {[%clk 0:02:23]} 36. Be3 {[%clk 0:00:09]}  Qxb5 {[%clk 0:02:26]} 37. Bxa7 {[%clk 0:00:12]}  h5 {[%clk 0:02:18]} 38. h3 {[%clk 0:00:14]}  Kh7 {[%clk 0:02:14]} 39. Bf2 {[%clk 0:00:10]}  Qc4 {[%clk 0:02:09]} 40. Bb6 {[%clk 0:00:13]}  Qb5 {[%clk 0:01:52]} 41. Be3 {[%clk 0:00:11]}  Qb3 {[%clk 0:01:49]} 42. Kh2 {[%clk 0:00:11]}  b5 {[%clk 0:01:50]} 43. Qd2 {[%clk 0:00:09]}  Qc4 {[%clk 0:01:28]} 44. Qd5 {[%clk 0:00:08]}  Qxd5 {[%clk 0:01:11]} 45. exd5 {[%clk 0:00:12]}  e4 {[%clk 0:01:15]} 46. Kg3 {[%clk 0:00:17]}  Be5+ {[%clk 0:01:10]} 47. Kf2 {[%clk 0:00:07]}  b4 {[%clk 0:00:56]} 48. Bc5 {[%clk 0:00:07]}  b3 {[%clk 0:00:59]} 49. Ba3 {[%clk 0:00:09]}  b2 {[%clk 0:00:45]} 50. Bxb2 {[%clk 0:00:13]}  Bxb2 {[%clk 0:00:49]} 51. Ke3 {[%clk 0:00:14]}  Be5 {[%clk 0:00:41]} 52. Kxe4 {[%clk 0:00:16]}  Bd6 {[%clk 0:00:40]} 53. h4 {[%clk 0:00:19]}  Bg3 {[%clk 0:00:38]} 54. d6 {[%clk 0:00:07]}  Bxh4 {[%clk 0:00:35]} 0-1

[Event "Grandmaster Triathlon (GM1)"]
[Site "Biel, CH"]
[Date "2025.07.13"]
[Round "5"]
[White "Wojtaszek, Radoslaw"]
[Black "Murzin, Volodar"]
[Result "1/2-1/2"]
[Board "3"]
[TimeControl "900+5"]
[WhiteFideId "1118358"]
[BlackFideId "44155573"]
[WhiteTitle "GM"]
[BlackTitle "GM"]
[WhiteElo "2657"]
[BlackElo "2644"]
[WhiteTeam "POL"]
[BlackTeam "FID"]
[WhiteClock "0:04:00"]
[BlackClock "0:01:33"]
[Variant "Standard"]

1. d4 {[%clk 0:15:09]}  Nf6 {[%clk 0:15:08]} 2. c4 {[%clk 0:15:13]}  g6 {[%clk 0:15:01]} 3. Nf3 {[%clk 0:15:15]}  Bg7 {[%clk 0:15:05]} 4. g3 {[%clk 0:15:18]}  d6 {[%clk 0:15:02]} 5. Nc3 {[%clk 0:15:18]}  O-O {[%clk 0:14:48]} 6. Bg2 {[%clk 0:15:21]}  Bd7 {[%clk 0:14:52]} 7. O-O {[%clk 0:14:35]}  Qc8 {[%clk 0:14:54]} 8. e4 {[%clk 0:14:33]}  Bh3 {[%clk 0:14:54]} 9. e5 {[%clk 0:14:20]}  Bxg2 {[%clk 0:14:50]} 10. Kxg2 {[%clk 0:14:24]}  Nfd7 {[%clk 0:14:49]} 11. Bf4 {[%clk 0:13:53]}  Nc6 {[%clk 0:14:32]} 12. Re1 {[%clk 0:13:39]}  dxe5 {[%clk 0:12:30]} 13. dxe5 {[%clk 0:13:42]}  Nc5 {[%clk 0:12:24]} 14. Qe2 {[%clk 0:13:25]}  Ne6 {[%clk 0:12:21]} 15. Qe4 {[%clk 0:11:55]}  Rd8 {[%clk 0:12:16]} 16. Be3 {[%clk 0:11:30]}  Rd7 {[%clk 0:11:33]} 17. Rad1 {[%clk 0:10:17]}  Rxd1 {[%clk 0:11:10]} 18. Rxd1 {[%clk 0:10:21]}  Qe8 {[%clk 0:11:04]} 19. Nd5 {[%clk 0:10:00]}  Rd8 {[%clk 0:11:00]} 20. Rd2 {[%clk 0:06:53]}  Rd7 {[%clk 0:09:24]} 21. Nf4 {[%clk 0:05:07]}  Nxf4+ {[%clk 0:04:59]} 22. Bxf4 {[%clk 0:05:10]}  Rxd2 {[%clk 0:04:56]} 23. Bxd2 {[%clk 0:05:13]}  Qd7 {[%clk 0:04:55]} 24. b4 {[%clk 0:04:33]}  Nxe5 {[%clk 0:01:23]} 25. Qxb7 {[%clk 0:04:29]}  Nxf3 {[%clk 0:01:26]} 26. Qa8+ {[%clk 0:04:18]}  Bf8 {[%clk 0:01:30]} 27. Bh6 {[%clk 0:04:22]}  Nh4+ {[%clk 0:01:26]} 28. gxh4 {[%clk 0:04:19]}  Qg4+ {[%clk 0:01:30]} 29. Kh1 {[%clk 0:04:00]}  Qd1+ {[%clk 0:01:33]} 1/2-1/2

[Event "Grandmaster Triathlon (GM1)"]
[Site "Biel, CH"]
[Date "2025.07.18"]
[Round "9"]
[White "Svane, Frederik"]
[Black "Murzin, Volodar"]
[Result "1/2-1/2"]
[Board "1"]
[TimeControl "40/7200:1800+30"]
[WhiteFideId "12923044"]
[BlackFideId "44155573"]
[WhiteTitle "GM"]
[BlackTitle "GM"]
[WhiteElo "2659"]
[BlackElo "2671"]
[WhiteTeam "GER"]
[BlackTeam "FID"]
[WhiteClock "0:02:32"]
[BlackClock "0:05:35"]
[Variant "Standard"]

1. e4 {[%clk 1:59:38]}  c6 {[%clk 1:59:52]} 2. d4 {[%clk 1:59:20]}  d5 {[%clk 1:59:47]} 3. exd5 {[%clk 1:59:16]}  cxd5 {[%clk 1:59:43]} 4. Nf3 {[%clk 1:59:11]}  Nc6 {[%clk 1:59:37]} 5. Be3 {[%clk 1:59:07]}  Nf6 {[%clk 1:50:53]} 6. Nbd2 {[%clk 1:58:46]}  Bf5 {[%clk 1:45:09]} 7. Bb5 {[%clk 1:58:33]}  Rc8 {[%clk 1:32:20]} 8. c4 {[%clk 1:58:26]}  Bd7 {[%clk 1:11:57]} 9. c5 {[%clk 1:49:00]}  g6 {[%clk 1:11:51]} 10. O-O {[%clk 1:48:42]}  Bg7 {[%clk 1:11:45]} 11. Bxc6 {[%clk 1:39:25]}  bxc6 {[%clk 1:06:59]} 12. Re1 {[%clk 1:33:16]}  O-O {[%clk 1:05:43]} 13. Ne5 {[%clk 1:25:02]}  Be8 {[%clk 1:05:28]} 14. b4 {[%clk 1:16:18]}  Nd7 {[%clk 1:02:35]} 15. Bf4 {[%clk 1:07:45]}  f6 {[%clk 0:57:38]} 16. Nxd7 {[%clk 1:07:38]}  Bxd7 {[%clk 0:53:09]} 17. Qb3 {[%clk 1:04:00]}  Re8 {[%clk 0:55:08]} 18. Qc3 {[%clk 1:00:13]}  Ra8 {[%clk 0:46:11]} 19. Nb3 {[%clk 0:59:09]}  Bf5 {[%clk 0:43:33]} 20. Rad1 {[%clk 0:45:30]}  a6 {[%clk 0:42:05]} 21. h3 {[%clk 0:45:11]}  Qd7 {[%clk 0:41:44]} 22. Bg3 {[%clk 0:42:40]}  Be6 {[%clk 0:32:38]} 23. Na5 {[%clk 0:41:40]}  Bf7 {[%clk 0:32:25]} 24. a4 {[%clk 0:40:33]}  Rac8 {[%clk 0:29:26]} 25. Rd2 {[%clk 0:36:42]}  Bf8 {[%clk 0:25:15]} 26. Qd3 {[%clk 0:35:01]}  Ra8 {[%clk 0:24:59]} 27. Rde2 {[%clk 0:31:06]}  Kh8 {[%clk 0:23:25]} 28. Qf3 {[%clk 0:29:50]}  Rac8 {[%clk 0:13:10]} 29. Qd3 {[%clk 0:27:55]}  Ra8 {[%clk 0:13:00]} 30. Qf3 {[%clk 0:27:48]}  Rac8 {[%clk 0:12:55]} 31. Re3 {[%clk 0:23:11]}  Kg8 {[%clk 0:12:34]} 32. Qe2 {[%clk 0:19:29]}  Qa7 {[%clk 0:12:11]} 33. h4 {[%clk 0:18:17]}  h5 {[%clk 0:08:17]} 34. Bf4 {[%clk 0:14:20]}  Kh7 {[%clk 0:08:11]} 35. Bg3 {[%clk 0:09:13]}  Kg8 {[%clk 0:07:54]} 36. Bh2 {[%clk 0:09:00]}  Kh7 {[%clk 0:07:19]} 37. Bf4 {[%clk 0:08:43]}  Kh8 {[%clk 0:06:14]} 38. Qd3 {[%clk 0:07:16]}  Kg8 {[%clk 0:05:27]} 39. R3e2 {[%clk 0:05:21]}  Kh8 {[%clk 0:05:03]} 40. Qh3 {[%clk 0:34:39]}  e6 {[%clk 0:32:06]} 41. Qd3 {[%clk 0:30:23]}  Kh7 {[%clk 0:32:08]} 42. Qf3 {[%clk 0:25:57]}  Qd7 {[%clk 0:32:17]} 43. Bg3 {[%clk 0:23:20]}  Bg7 {[%clk 0:32:22]} 44. Bd6 {[%clk 0:23:09]}  Ra8 {[%clk 0:32:46]} 45. Qf4 {[%clk 0:21:26]}  Rac8 {[%clk 0:32:53]} 46. Kh2 {[%clk 0:18:44]}  Ra8 {[%clk 0:33:01]} 47. Kh1 {[%clk 0:14:46]}  Rac8 {[%clk 0:33:04]} 48. Kg1 {[%clk 0:15:12]}  Qd8 {[%clk 0:33:13]} 49. Qg3 {[%clk 0:11:34]}  Qd7 {[%clk 0:33:31]} 50. Re3 {[%clk 0:11:37]}  Bg8 {[%clk 0:33:18]} 51. Qf3 {[%clk 0:10:52]}  Bf7 {[%clk 0:28:10]} 52. Qe2 {[%clk 0:10:48]}  Ra8 {[%clk 0:26:46]} 53. Qd3 {[%clk 0:10:03]}  Kg8 {[%clk 0:28:06]} 54. R3e2 {[%clk 0:09:31]}  Kh7 {[%clk 0:26:58]} 55. Bh2 {[%clk 0:06:47]}  Kg8 {[%clk 0:26:12]} 56. Qg3 {[%clk 0:07:53]}  e5 {[%clk 0:26:18]} 57. dxe5 {[%clk 0:08:06]}  fxe5 {[%clk 0:22:52]} 58. Qd3 {[%clk 0:08:31]}  Qc7 {[%clk 0:21:14]} 59. Qc3 {[%clk 0:04:33]}  d4 {[%clk 0:21:39]} 60. Qd3 {[%clk 0:02:32]}  Kh7 {[%clk 0:14:55]} 61. Qxd4 {[%clk 0:01:23]}  exd4 {[%clk 0:15:11]} 62. Bxc7 {[%clk 0:01:44]}  Rxe2 {[%clk 0:11:32]} 63. Rxe2 {[%clk 0:02:13]}  Bd5 {[%clk 0:12:02]} 64. Bf4 {[%clk 0:00:42]}  Rf8 {[%clk 0:12:17]} 65. Bd2 {[%clk 0:00:57]}  Bf6 {[%clk 0:12:43]} 66. Bg5 {[%clk 0:00:33]}  d3 {[%clk 0:07:38]} 67. Rd2 {[%clk 0:01:01]}  Bxg5 {[%clk 0:08:03]} 68. hxg5 {[%clk 0:01:30]}  Rb8 {[%clk 0:08:32]} 69. Rxd3 {[%clk 0:00:49]}  Rxb4 {[%clk 0:09:00]} 70. Re3 {[%clk 0:00:32]}  Rxa4 {[%clk 0:09:28]} 71. Nb7 {[%clk 0:01:01]}  a5 {[%clk 0:05:48]} 72. Re7+ {[%clk 0:00:37]}  Kg8 {[%clk 0:05:59]} 73. Nd6 {[%clk 0:01:07]}  Ra1+ {[%clk 0:05:58]} 74. Kh2 {[%clk 0:01:36]}  a4 {[%clk 0:06:26]} 75. Re8+ {[%clk 0:01:40]}  Kg7 {[%clk 0:06:32]} 76. Re7+ {[%clk 0:01:37]}  Kf8 {[%clk 0:05:23]} 77. Re8+ {[%clk 0:02:06]}  Kg7 {[%clk 0:05:15]} 78. Re7+ {[%clk 0:02:32]}  Kf8 {[%clk 0:05:35]} 1/2-1/2

[Event "Grandmaster Triathlon (GM1)"]
[Site "Biel, CH"]
[Date "2025.07.18"]
[Round "9"]
[White "Wojtaszek, Radoslaw"]
[Black "Aravindh, Chithambaram VR."]
[Result "1/2-1/2"]
[Board "2"]
[TimeControl "40/7200:1800+30"]
[WhiteFideId "1118358"]
[BlackFideId "5072786"]
[WhiteTitle "GM"]
[BlackTitle "GM"]
[WhiteElo "2651"]
[BlackElo "2724"]
[WhiteTeam "POL"]
[BlackTeam "IND"]
[WhiteClock "0:29:14"]
[BlackClock "0:59:10"]
[Variant "Standard"]

1. d4 {[%clk 1:59:58]}  d5 {[%clk 1:59:51]} 2. c4 {[%clk 1:59:53]}  c6 {[%clk 1:59:44]} 3. Nf3 {[%clk 1:59:46]}  Nf6 {[%clk 1:59:34]} 4. Nc3 {[%clk 1:59:35]}  dxc4 {[%clk 1:59:23]} 5. a4 {[%clk 1:59:23]}  Bf5 {[%clk 1:59:09]} 6. Ne5 {[%clk 1:59:08]}  Nbd7 {[%clk 1:58:45]} 7. Nxc4 {[%clk 1:58:51]}  Qc7 {[%clk 1:58:32]} 8. g3 {[%clk 1:57:58]}  e5 {[%clk 1:58:23]} 9. dxe5 {[%clk 1:57:33]}  Nxe5 {[%clk 1:58:15]} 10. Bf4 {[%clk 1:57:10]}  Nfd7 {[%clk 1:57:54]} 11. Bg2 {[%clk 1:56:46]}  g5 {[%clk 1:57:36]} 12. Ne3 {[%clk 1:55:31]}  gxf4 {[%clk 1:57:20]} 13. Nxf5 {[%clk 1:55:25]}  O-O-O {[%clk 1:57:12]} 14. Qc2 {[%clk 1:54:55]}  Nc5 {[%clk 1:56:55]} 15. O-O {[%clk 1:49:13]}  fxg3 {[%clk 1:56:36]} 16. hxg3 {[%clk 1:48:45]}  a5 {[%clk 1:56:27]} 17. Rfd1 {[%clk 1:42:53]}  h5 {[%clk 1:55:53]} 18. Ne4 {[%clk 1:37:14]}  Nxe4 {[%clk 1:53:52]} 19. Qxe4 {[%clk 1:36:29]}  Bb4 {[%clk 1:47:58]} 20. e3 {[%clk 1:27:41]}  Kb8 {[%clk 1:43:59]} 21. Rd4 {[%clk 1:16:34]}  Rde8 {[%clk 1:40:39]} 22. Qc2 {[%clk 1:11:54]}  Rd8 {[%clk 1:40:19]} 23. Rad1 {[%clk 1:11:06]}  f6 {[%clk 1:38:57]} 24. Rxd8+ {[%clk 0:56:40]}  Rxd8 {[%clk 1:38:53]} 25. Be4 {[%clk 0:54:49]}  Rg8 {[%clk 1:30:14]} 26. Kg2 {[%clk 0:54:40]}  Ng4 {[%clk 1:29:13]} 27. Bf3 {[%clk 0:48:01]}  Rg5 {[%clk 1:17:05]} 28. Rh1 {[%clk 0:37:27]}  Qe5 {[%clk 1:06:53]} 29. Be4 {[%clk 0:37:15]}  Qe8 {[%clk 1:02:12]} 30. Bf3 {[%clk 0:33:02]}  Qe5 {[%clk 1:00:46]} 31. Be4 {[%clk 0:32:34]}  Qe8 {[%clk 1:00:41]} 32. Bf3 {[%clk 0:29:14]}  Qe5 {[%clk 0:59:10]} 1/2-1/2

[Event "Grandmaster Triathlon (GM1)"]
[Site "Biel, CH"]
[Date "2025.07.18"]
[Round "9"]
[White "Salem, A.R. Saleh"]
[Black "Fedoseev, Vladimir"]
[Result "1-0"]
[Board "3"]
[TimeControl "40/7200:1800+30"]
[WhiteFideId "9301348"]
[BlackFideId "24130737"]
[WhiteTitle "GM"]
[BlackTitle "GM"]
[WhiteElo "2627"]
[BlackElo "2739"]
[WhiteTeam "UAE"]
[BlackTeam "SLO"]
[WhiteClock "0:11:04"]
[BlackClock "0:14:04"]
[Variant "Standard"]

1. d4 {[%clk 1:59:32]}  d5 {[%clk 1:52:15]} 2. c4 {[%clk 1:59:23]}  e6 {[%clk 1:52:09]} 3. Nf3 {[%clk 1:59:14]}  Nf6 {[%clk 1:51:50]} 4. g3 {[%clk 1:59:02]}  c6 {[%clk 1:51:07]} 5. Bg2 {[%clk 1:58:25]}  b6 {[%clk 1:50:01]} 6. O-O {[%clk 1:57:53]}  Be7 {[%clk 1:49:57]} 7. Nc3 {[%clk 1:56:44]}  O-O {[%clk 1:40:12]} 8. b3 {[%clk 1:55:37]}  a5 {[%clk 1:33:14]} 9. Re1 {[%clk 1:51:34]}  Nbd7 {[%clk 1:29:32]} 10. Nd2 {[%clk 1:44:22]}  Ba6 {[%clk 1:23:05]} 11. e4 {[%clk 1:42:24]}  dxc4 {[%clk 1:21:08]} 12. Nxc4 {[%clk 1:39:11]}  Bxc4 {[%clk 1:15:35]} 13. bxc4 {[%clk 1:37:34]}  e5 {[%clk 1:09:36]} 14. Ne2 {[%clk 1:31:08]}  exd4 {[%clk 1:09:51]} 15. Nxd4 {[%clk 1:30:03]}  Ne5 {[%clk 1:09:36]} 16. Bf4 {[%clk 1:26:37]}  Nfg4 {[%clk 1:09:01]} 17. Nxc6 {[%clk 1:25:01]}  Nxc6 {[%clk 1:08:56]} 18. Qxg4 {[%clk 1:24:54]}  Qc8 {[%clk 1:08:54]} 19. Qxc8 {[%clk 1:16:22]}  Raxc8 {[%clk 1:08:49]} 20. Bh3 {[%clk 1:12:33]}  Nd4 {[%clk 1:06:37]} 21. Bxc8 {[%clk 1:08:29]}  Nf3+ {[%clk 1:06:27]} 22. Kf1 {[%clk 1:08:14]}  Nxe1 {[%clk 1:06:21]} 23. Bb7 {[%clk 1:05:13]}  Nd3 {[%clk 1:01:35]} 24. Bc7 {[%clk 1:03:16]}  Nb4 {[%clk 0:50:13]} 25. a4 {[%clk 0:54:03]}  Nd3 {[%clk 0:48:54]} 26. Ke2 {[%clk 0:49:00]}  Nc5 {[%clk 0:48:13]} 27. Bd5 {[%clk 0:47:10]}  Nd7 {[%clk 0:48:09]} 28. Bf4 {[%clk 0:32:11]}  Bb4 {[%clk 0:46:34]} 29. Be3 {[%clk 0:27:09]}  Nc5 {[%clk 0:46:12]} 30. f4 {[%clk 0:26:15]}  Re8 {[%clk 0:46:05]} 31. Kf3 {[%clk 0:25:53]}  Kf8 {[%clk 0:44:56]} 32. g4 {[%clk 0:24:37]}  f6 {[%clk 0:42:12]} 33. h4 {[%clk 0:24:20]}  h6 {[%clk 0:42:09]} 34. Rg1 {[%clk 0:20:46]}  Ke7 {[%clk 0:34:30]} 35. g5 {[%clk 0:22:30]}  hxg5 {[%clk 0:34:26]} 36. hxg5 {[%clk 0:21:29]}  Bc3 {[%clk 0:25:59]} 37. gxf6+ {[%clk 0:20:17]}  gxf6 {[%clk 0:24:52]} 38. Rg7+ {[%clk 0:15:46]}  Kd6 {[%clk 0:24:40]} 39. Rg6 {[%clk 0:15:44]}  Kc7 {[%clk 0:20:36]} 40. Bxc5 {[%clk 0:39:11]}  bxc5 {[%clk 0:51:00]} 41. Kg4 {[%clk 0:38:47]}  Rh8 {[%clk 0:48:26]} 42. Kf5 {[%clk 0:38:02]}  Rh4 {[%clk 0:39:41]} 43. Rg3 {[%clk 0:35:50]}  Bd2 {[%clk 0:32:04]} 44. Rg7+ {[%clk 0:35:10]}  Kb6 {[%clk 0:31:58]} 45. Kxf6 {[%clk 0:31:06]}  Rxf4 {[%clk 0:32:01]} 46. Ke6 {[%clk 0:31:04]}  Rh4 {[%clk 0:27:01]} 47. e5 {[%clk 0:28:57]}  Rh5 {[%clk 0:24:22]} 48. Rb7+ {[%clk 0:24:10]}  Ka6 {[%clk 0:24:50]} 49. Rf7 {[%clk 0:23:43]}  Be1 {[%clk 0:21:20]} 50. Rf3 {[%clk 0:22:01]}  Bh4 {[%clk 0:15:59]} 51. Kd6 {[%clk 0:21:31]}  Rh8 {[%clk 0:15:45]} 52. e6 {[%clk 0:19:58]}  Rd8 {[%clk 0:16:02]} 53. Kc7 {[%clk 0:20:01]}  Re8 {[%clk 0:16:14]} 54. Rb3 {[%clk 0:16:52]}  Rh8 {[%clk 0:14:04]} 55. Rh3 {[%clk 0:11:04]} 1-0

[Event "Grandmaster Triathlon (GM1)"]
[Site "Biel, CH"]
[Date "2025.07.19"]
[Round "10"]
[White "Fedoseev, Vladimir"]
[Black "Svane, Frederik"]
[Result "1/2-1/2"]
[Board "1"]
[TimeControl "40/7200:1800+30"]
[WhiteFideId "24130737"]
[BlackFideId "12923044"]
[WhiteTitle "GM"]
[BlackTitle "GM"]
[WhiteElo "2739"]
[BlackElo "2659"]
[WhiteTeam "SLO"]
[BlackTeam "GER"]
[WhiteClock "0:10:04"]
[BlackClock "0:03:57"]
[Variant "Standard"]

1. d4 {[%clk 1:56:25]}  Nf6 {[%clk 1:59:36]} 2. Bg5 {[%clk 1:56:19]}  d5 {[%clk 1:59:13]} 3. e3 {[%clk 1:56:06]}  c5 {[%clk 1:58:42]} 4. Bxf6 {[%clk 1:55:42]}  gxf6 {[%clk 1:58:29]} 5. Bb5+ {[%clk 1:55:35]}  Nc6 {[%clk 1:53:18]} 6. dxc5 {[%clk 1:53:31]}  e6 {[%clk 1:47:36]} 7. b4 {[%clk 1:52:17]}  f5 {[%clk 1:33:13]} 8. Nd2 {[%clk 1:45:03]}  a6 {[%clk 1:16:30]} 9. Bxc6+ {[%clk 1:40:14]}  bxc6 {[%clk 1:16:25]} 10. Ne2 {[%clk 1:40:09]}  Bg7 {[%clk 1:12:45]} 11. Nd4 {[%clk 1:35:19]}  f4 {[%clk 1:09:20]} 12. O-O {[%clk 1:33:58]}  Bd7 {[%clk 1:07:11]} 13. c3 {[%clk 1:20:47]}  e5 {[%clk 1:05:21]} 14. Ne2 {[%clk 1:19:51]}  fxe3 {[%clk 1:04:07]} 15. fxe3 {[%clk 1:19:50]}  O-O {[%clk 0:59:03]} 16. Kh1 {[%clk 1:13:54]}  Kh8 {[%clk 0:56:59]} 17. c4 {[%clk 1:06:58]}  Bg4 {[%clk 0:47:50]} 18. h3 {[%clk 0:58:14]}  Qh4 {[%clk 0:45:25]} 19. cxd5 {[%clk 0:57:43]}  cxd5 {[%clk 0:44:54]} 20. Nf3 {[%clk 0:51:09]}  Qh6 {[%clk 0:43:54]} 21. Rc1 {[%clk 0:44:42]}  Be6 {[%clk 0:39:19]} 22. Qd2 {[%clk 0:41:22]}  Rfc8 {[%clk 0:35:25]} 23. Nc3 {[%clk 0:37:24]}  Rab8 {[%clk 0:26:26]} 24. a3 {[%clk 0:33:42]}  Rg8 {[%clk 0:20:55]} 25. c6 {[%clk 0:26:16]}  e4 {[%clk 0:20:03]} 26. Ng1 {[%clk 0:25:29]}  Be5 {[%clk 0:16:12]} 27. c7 {[%clk 0:24:14]}  Bxc7 {[%clk 0:11:22]} 28. Qd4+ {[%clk 0:23:24]}  Qg7 {[%clk 0:10:25]} 29. Qxg7+ {[%clk 0:23:13]}  Kxg7 {[%clk 0:09:17]} 30. Nxd5 {[%clk 0:20:41]}  Bd6 {[%clk 0:04:57]} 31. Nf6 {[%clk 0:17:53]}  Rgc8 {[%clk 0:04:56]} 32. Nxe4 {[%clk 0:17:45]}  Be7 {[%clk 0:04:55]} 33. Nf3 {[%clk 0:17:19]}  a5 {[%clk 0:02:54]} 34. bxa5 {[%clk 0:16:19]}  Bd5 {[%clk 0:02:53]} 35. Ng3 {[%clk 0:13:56]}  Rxc1 {[%clk 0:02:44]} 36. Rxc1 {[%clk 0:13:51]}  Bxa3 {[%clk 0:02:41]} 37. Ra1 {[%clk 0:13:31]}  Bb2 {[%clk 0:01:06]} 38. Rd1 {[%clk 0:12:52]}  Rb5 {[%clk 0:00:13]} 39. a6 {[%clk 0:05:23]}  Ra5 {[%clk 0:00:13]} 40. e4 {[%clk 0:34:36]}  Be6 {[%clk 0:30:36]} 41. Rd6 {[%clk 0:34:48]}  Ba3 {[%clk 0:17:47]} 42. Rb6 {[%clk 0:26:08]}  Bc5 {[%clk 0:17:03]} 43. Rc6 {[%clk 0:26:31]}  Be3 {[%clk 0:09:35]} 44. Ne2 {[%clk 0:22:33]}  Ra4 {[%clk 0:05:35]} 45. Nc3 {[%clk 0:13:07]}  Ra1+ {[%clk 0:05:35]} 46. Kh2 {[%clk 0:13:32]}  Bd7 {[%clk 0:05:50]} 47. Rc4 {[%clk 0:14:00]}  Rxa6 {[%clk 0:05:31]} 48. Nd5 {[%clk 0:14:26]}  Ba7 {[%clk 0:05:46]} 49. Nd4 {[%clk 0:10:41]}  Bb8+ {[%clk 0:04:17]} 50. Kg1 {[%clk 0:11:09]}  Ba7 {[%clk 0:01:35]} 51. Kf2 {[%clk 0:08:24]}  Ra2+ {[%clk 0:01:11]} 52. Kf3 {[%clk 0:08:43]}  Ra3+ {[%clk 0:01:39]} 53. Kf4 {[%clk 0:08:10]}  Bb8+ {[%clk 0:02:07]} 54. e5 {[%clk 0:08:32]}  Ra5 {[%clk 0:02:34]} 55. Ke4 {[%clk 0:08:40]}  Be6 {[%clk 0:02:09]} 56. Nxe6+ {[%clk 0:08:57]}  fxe6 {[%clk 0:02:38]} 57. Ne3 {[%clk 0:05:56]}  Rxe5+ {[%clk 0:02:31]} 58. Kf3 {[%clk 0:06:22]}  Rb5 {[%clk 0:02:06]} 59. Rc6 {[%clk 0:06:02]}  Kf7 {[%clk 0:03:09]} 60. Rc3 {[%clk 0:06:14]}  Be5 {[%clk 0:03:18]} 61. Ra3 {[%clk 0:06:42]}  Bd4 {[%clk 0:03:07]} 62. Nc4 {[%clk 0:07:05]}  Rb1 {[%clk 0:02:32]} 63. Ke4 {[%clk 0:07:25]}  Bf6 {[%clk 0:02:36]} 64. Ra7+ {[%clk 0:07:14]}  Kg6 {[%clk 0:03:02]} 65. Ra6 {[%clk 0:07:38]}  Re1+ {[%clk 0:02:12]} 66. Kf3 {[%clk 0:07:43]}  Rf1+ {[%clk 0:02:34]} 67. Ke2 {[%clk 0:07:48]}  Rf4 {[%clk 0:03:03]} 68. Nd2 {[%clk 0:08:09]}  Kf7 {[%clk 0:02:27]} 69. Ke3 {[%clk 0:08:27]}  Rf5 {[%clk 0:02:35]} 70. Ne4 {[%clk 0:08:49]}  Bg5+ {[%clk 0:02:58]} 71. Ke2 {[%clk 0:08:56]}  Re5 {[%clk 0:02:19]} 72. Kf3 {[%clk 0:09:17]}  h5 {[%clk 0:01:31]} 73. g3 {[%clk 0:08:55]}  Rf5+ {[%clk 0:01:41]} 74. Kg2 {[%clk 0:09:21]}  Re5 {[%clk 0:01:47]} 75. Ra4 {[%clk 0:09:48]}  Be7 {[%clk 0:02:09]} 76. h4 {[%clk 0:10:13]}  Kg6 {[%clk 0:02:08]} 77. Kf3 {[%clk 0:10:39]}  Rf5+ {[%clk 0:02:33]} 78. Ke3 {[%clk 0:10:59]}  Bc5+ {[%clk 0:02:39]} 79. Ke2 {[%clk 0:11:08]}  Re5 {[%clk 0:02:59]} 80. Kf3 {[%clk 0:11:30]}  Rf5+ {[%clk 0:03:23]} 81. Kg2 {[%clk 0:11:56]}  Re5 {[%clk 0:03:30]} 82. Ng5 {[%clk 0:11:45]}  Be7 {[%clk 0:01:45]} 83. Nh3 {[%clk 0:12:10]}  Rf5 {[%clk 0:01:06]} 84. Nf4+ {[%clk 0:12:37]}  Kf7 {[%clk 0:01:34]} 85. Ra7 {[%clk 0:12:50]}  Rb5 {[%clk 0:01:26]} 86. Ra6 {[%clk 0:11:54]}  Re5 {[%clk 0:01:46]} 87. Kf3 {[%clk 0:12:02]}  Bf6 {[%clk 0:01:15]} 88. Ra2 {[%clk 0:09:15]}  Rb5 {[%clk 0:01:01]} 89. Re2 {[%clk 0:09:37]}  Rf5 {[%clk 0:01:25]} 90. Ke4 {[%clk 0:07:40]}  Re5+ {[%clk 0:01:10]} 91. Kd3 {[%clk 0:08:05]}  Rxe2 {[%clk 0:00:43]} 92. Kxe2 {[%clk 0:08:31]}  e5 {[%clk 0:01:11]} 93. Nxh5 {[%clk 0:07:06]}  Be7 {[%clk 0:01:37]} 94. Kf3 {[%clk 0:07:31]}  Kg6 {[%clk 0:02:03]} 95. Kg4 {[%clk 0:07:55]}  Bd6 {[%clk 0:02:11]} 96. Nf4+ {[%clk 0:08:22]}  exf4 {[%clk 0:02:38]} 97. gxf4 {[%clk 0:08:47]}  Bxf4 {[%clk 0:03:03]} 98. Kxf4 {[%clk 0:09:13]}  Kh5 {[%clk 0:03:31]} 99. Kg3 {[%clk 0:09:38]}  Kh6 {[%clk 0:03:57]} 100. Kg4 {[%clk 0:10:04]} 1/2-1/2